Cogmind - Beta 10.2 @@@ ROGUE MODE // 2021.06.25 @ 01:11:44 Player: Anticus Result: Destroyed by G-47 Trooper with Particle Gun Performance ------------- Evolutions (0) 0 Regions Visited (1) 200 Robots Destroyed (21) 105 Value Destroyed (378) 378 Prototype IDs (2) 40 Alien Tech Used (0) 0 Bonus (0) 0 TOTAL SCORE: 723 Bonus ------- None Cogmind --------- Core Integrity 0/250 Matter 400/400 Energy 100/100 System Corruption 0% Temperature Cool (9) Movement Flying (200) Ox2 Location -10/Materials Parts ------- > --- POWER (1) -------- (None) > --- PROPULSION (2) --- Flight Unit > --- UTILITY (2) ------ Medium Storage Unit Medium Matter Pod > --- WEAPON (2) ------- (None) > --- INVENTORY (8) ---- Heat Sink High-capacity Battery (400) Improved Terrain Scanner ECM Suite Core Shielding Peak State ------------ > --- POWER ------------ Light Ion Engine > --- PROPULSION ------- Aluminum Leg Aluminum Leg > --- UTILITY ---------- Medium Matter Pod Improved Terrain Scanner > --- WEAPON ----------- Medium Laser Light Assault Rifle > --- INVENTORY -------- Seismic Analyzer Mining Laser [Rating: 8] Favorites ----------- Power Light Ion Engine Engine Light Ion Engine Propulsion Flight Unit Leg Aluminum Leg Flight Unit Flight Unit Utility Medium Matter Pod Device Improved Terrain Scanner Storage Medium Matter Pod Weapon Light Assault Rifle Energy Gun Medium Laser Ballistic Gun Light Assault Rifle Launcher Grenade Launcher Special Weapon Mining Laser Build | -11 -10 ------- Run | Scr Mat Slots Evolved . | . . Power . | . . Propulsion . | . . Utility . | . . Weapon . | . . Parts Attached 23 | 10 13 Power 3 | 1 2 Engine 3 | 1 2 Core . | . . Reactor . | . . Propulsion 5 | 2 3 Treads . | . . Leg 2 | 2 . Wheel . | . . Hover . | . . Flight 3 | . 3 Utility 5 | 2 3 Device 1 | 1 . Storage 4 | 1 3 Processor . | . . Hackware . | . . Protection . | . . Artifact . | . . Weapon 10 | 5 5 Energy Gun 3 | 3 . Energy Cannon . | . . Ballistic Gun 3 | 1 2 Ballistic Cannon . | . . Launcher 1 | . 1 Special Weapon 3 | 1 2 Impact Weapon . | . . Slashing Weapon . | . . Piercing Weapon . | . . Special Melee Weapon . | . . Unidentified Prototypes . | . . Parts Lost 7 | . 7 Power 1 | . 1 Propulsion 1 | . 1 Utility . | . . Weapon 5 | . 5 Highest Loss Streak 3 | . 3 Average Slot Usage (%) 91 | . 91 Engine 13 | . 13 Leg 3 | . 3 Flight 18 | . 18 Storage 27 | . 27 Energy Gun 2 | . 2 Ballistic Gun 8 | . 8 Launcher 5 | . 5 Special Weapon 9 | . 9 Naked Turns . | . . Heaviest Build 24 | 9 24 Greatest Support 20 | 20 20 Greatest Overweight (x) 4 | . 4 Average Overweight (x) 1 | . 1 Largest Inventory Capacity 10 | 4 10 Average Capacity 6 | 4 7 Most Carried 7 | 4 7 Average Carried 4 | 2 4 Final Capacity 8 | 4 8 Final Carried 5 | 2 5 Class Distribution -------------------- 66% | Scavenger-Mutant 33% | Mutant Dominant Class ---------------- Scavenger-Mutant | -10/Materials Resources | -11 -10 ----------- Run | Scr Mat Matter Collected 645 | 348 297 Remotely . | . . Salvage Created 528 | 65 463 Parts 39 | 7 32 Haulers Intercepted . | . . Recyclers Shooed 1 | . 1 Parts Field Recycled . | . . Retrieved Matter . | . . Parts Self-Destructed . | . . Prevented . | . . Kills | -11 -10 ------- Run | Scr Mat Combat Hostiles Destroyed 9 | 1 8 Guns 6 | 1 5 AOE 3 | . 3 Classes Destroyed 7 | 3 4 Worker 4 | 1 3 Builder 3 | . 3 Tunneler 1 | 1 . Recycler 3 | . 3 Watcher 1 | . 1 Swarmer 2 | . 2 Grunt 7 | 1 6 Best Kill Streak 7 | 2 7 Combat Bots Only 2 | 1 2 Max Kills in Single Turn 2 | 1 2 Gunslinging . | . . Exploded 1 | . 1 Melee . | . . Uniques/NPCs Destroyed . | . . Combat | -11 -10 -------- Run | Scr Mat Damage Taken 894 | 55 839 Core 259 | . 259 Absorbed by Shields . | . . Core Remaining (%) 100 | 100 . Volleys Fired 63 | 16 47 Largest 2 | 2 2 Hottest 200 | 120 200 Shots Fired 113 | 30 83 Gun 91 | 27 64 Cannon . | . . Launcher 16 | . 16 Special 6 | 3 3 Kinetic 61 | 16 45 Thermal 36 | 14 22 Explosive 16 | . 16 Electromagnetic . | . . Robot Hit Streak 6 | 4 6 Robot Miss Streak 8 | 4 8 Penetration Max . | . . Secondary Targets . | . . Shots Hit Robots 49 | 11 38 Core Hits 35 | 5 30 Critical Hits . | . . Critical Kills . | . . Critical Parts Destroyed . | . . Melee Attacks . | . . Impact . | . . Slashing . | . . Piercing . | . . Sneak Attacks . | . . Combat Hostiles . | . . Follow-up Attacks . | . . Damage Inflicted 1344 | 131 1213 Guns 426 | 131 295 Cannons . | . . Explosions 892 | . 892 Melee . | . . Ramming 2 | . 2 Kinetic 216 | 32 184 Thermal 234 | 99 135 Explosive 892 | . 892 Electromagnetic . | . . Impact . | . . Slashing . | . . Piercing . | . . Highest Corruption . | . . Average Corruption . | . . Corruption Purged . | . . Overload Shots . | . . Overflow Damage 34 | . 34 Projectiles . | . . Explosions 34 | . 34 Melee . | . . Knockbacks . | . . Impact . | . . Kinetic . | . . Secondary . | . . Self-Inflicted Damage 130 | . 130 Shots 7 | . 7 Rammed 1 | . 1 Targets Rammed 1 | . 1 Kicked . | . . Crushed . | . . Highest Temperature 102 | 90 102 Average Temperature 35 | 38 33 Received Heat Transfer 318 | 30 288 Siege Activations . | . . Robots Corrupted . | . . Combat Hostiles . | . . Parts Fried . | . . Impact Corruptions . | . . Robots Melted . | . . Combat Hostiles . | . . Parts Melted . | . . Heat Transferred 608 | 225 383 Parts Sabotaged . | . . Parts Stolen . | . . Parts Stripped . | . . Power Chain Reactions . | . . Missiles Intercepted . | . . Alert | -11 -10 ------- Run | Scr Mat Peak Influence 360 | 30 360 Initial 19 | . 19 Average 129 | 16 166 Maximum Alert Level 1 | . 1 Low Security (%) 82 | 100 76 Level 1 17 | . 23 Level 2 . | . . Level 3 . | . . Level 4 . | . . Level 5 . | . . High Security . | . . Max Security . | . . Squads Dispatched 2 | . 2 Investigation . | . . Extermination . | . . Reinforcement 2 | . 2 Assault . | . . Garrison . | . . Intercept . | . . Construction Impeded . | . . Haulers Reinforced . | . . Stealth | -11 -10 --------- Run | Scr Mat Distress Signals 2 | . 2 Communications Jammed . | . . Distress Signals . | . . Times Spotted 23 | 1 22 Peak Tracking Total 4 | 1 4 Tactical Retreats . | . . Traps | -11 -10 ------- Run | Scr Mat Traps Triggered . | . . Indirectly . | . . Trap Hack Attempts . | . . Triggered . | . . Disarmed 1 | . 1 Reprogrammed . | . . Reused . | . . Traps Extracted . | . . Installed . | . . Triggered . | . . Machines | -11 -10 ---------- Run | Scr Mat Machines Disabled 7 | . 7 Max in Single Turn 3 | . 3 Machines Sabotaged . | . . Garrisons Compromised . | . . Overloaded Fab Kills . | . . Fab Network Shutdowns . | . . Hacking | -11 -10 --------- Run | Scr Mat Machines Accessed 3 | . 3 Terminals 1 | . 1 Fabricators . | . . Repair Stations 1 | . 1 Recycling Units 1 | . 1 Scanalyzers . | . . Garrison Access . | . . Total Hacks 9 | . 9 Successful 8 | . 8 Failed 1 | . 1 Catastrophic . | . . Database Lockouts . | . . Manual . | . . Terminals 3 | . 3 Fabricators . | . . Repair Stations 3 | . 3 Recycling Units 3 | . 3 Scanalyzers . | . . Garrison Access . | . . Terminal Hacks 3 | . 3 Prototype ID Bank 1 | . 1 Locate Traps 1 | . 1 Disarm Traps 1 | . 1 Fabricator Hacks . | . . Repair Station Hacks 3 | . 3 Scan Component 2 | . 2 Repair 1 | . 1 Recycling Unit Hacks 2 | . 2 Report Inventory 1 | . 1 Retrieve Components 1 | . 1 Scanalyzer . | . . Garrison Access Hacks . | . . Unauthorized Hacks . | . . Terminals . | . . Fabricators . | . . Repair Stations . | . . Recycling Units . | . . Scanalyzers . | . . Garrison Access . | . . Data Cores Recovered . | . . Used . | . . Hacking Detections 3 | . 3 Full Trace Events 3 | . 3 Feedback Events . | . . Feedback Blocked . | . . Robot Schematics Acquired . | . . Robots Built . | . . Matter . | . . Time . | . . Total Robot Build Rating . | . . Part Schematics Acquired . | . . Parts Built . | . . Matter . | . . Time . | . . Total Part Build Rating . | . . Parts Repaired 1 | . 1 Time 26 | . 26 Parts Recycled . | . . Recycled Matter . | . . Retrieved Matter . | . . Retrieved Components 5 | . 5 Parts Scanalyzed . | . . Part Schematics Acquired . | . . Parts Damaged . | . . Bothacking | -11 -10 ------------ Run | Scr Mat Used RIF Installer . | . . Robots Hacked . | . . Non-combat . | . . Combat . | . . Robot Hacks Applied . | . . Relay Couplers Released . | . . Robots Rewired . | . . Allies Hacked . | . . Hacks Repelled . | . . Allies | -11 -10 -------- Run | Scr Mat Total Allies . | . . Largest Group . | . . Highest-Rated Group . | . . Highest-Rated Ally . | . . Total Orders . | . . Ally Attacks . | . . Total Damage . | . . Kills . | . . Allies Corrupted . | . . Allies Melted . | . . Intel | -11 -10 ------- Run | Scr Mat Robot Analysis Total . | . . Derelict Logs Recovered . | . . Drone Launches . | . . Drone Recoveries . | . . Exploration | -11 -10 ------------- Run | Scr Mat Turns Passed 1000 | 247 753 Spaces Moved 439 | 150 289 Core 22 | 22 . Treads . | . . Legs 169 | 128 41 Wheels . | . . Hover . | . . Flight 248 | . 248 Fastest Speed 50 | 50 117 Average Speed 171 | 109 203 Slowest Speed 360 | 120 360 Overloaded Moves . | . . Propulsion Burnouts . | . . Robots Hopped . | . . Cave-ins Triggered . | . . Exploration Rate (%) 28 | 8 48 Regions Visited 1 Branch Regions . Pre-discovered Areas . | . . Known Exits Taken . | . . Unknown Exits Taken 1 | 1 . Scrap Searched . | . . Spaces Dug . | . . Terrain Destroyed 88 | 2 86 Melee . | . . Projectile 2 | 2 . AOE 86 | . 86 Terrain Rammed . | . . Walls Destroyed . | . . Machines Disabled . | . . Actions | -11 -10 --------- Run | Scr Mat Total 573 | 199 374 Wait 9 | 9 . Move 438 | 149 289 Hop . | . . Pick Up 26 | 11 15 Fast Attach 2 | 2 . Attach 11 | 5 6 Detach 1 | . 1 Swap 10 | 3 7 Drop 12 | 4 8 Fire 63 | 16 47 Melee . | . . Ram 1 | . 1 Kick . | . . Crush . | . . Escape Stasis . | . . Rewire . | . . Trap . | . . Miscellaneous . | . . Route ------- -11/Scrapyard -10/Materials (discovered 2 exits: [*Min x2]) History --------- Turn | Location | Event 2 | -11/Scrapyard | Met Revision 17 96 | -11/Scrapyard | Discovered new exit (range 8) 248 | -11/Scrapyard | Entered Materials 292 | -10/Materials | Discovered new exit (range 11) 318 | -10/Materials | Build established: Mutant 459 | -10/Materials | Core integrity fell below 50% 634 | -10/Materials | Build established: Scavenger-Mutant 683 | -10/Materials | Discovered new exit (range 11) 778 | -10/Materials | Repaired Flight Unit? 986 | -10/Materials | Core integrity fell below 20% 1001 | -10/Materials | Destroyed by G-47 Trooper with Particle Gun Last Messages --------------- >>Scan(Lgt. Ion Engine) Scanning Lgt. Ion Engine... Ready to Repair: Lgt. Ion Engine Rating: 1 Time: 26 [Achievement: Part-time Mechanic] >> REPAIR: Completed Flight Unit? U-05 Engineer lays Concrete. U-05 Engineer builds a Wall. U-05 Engineer lays Concrete. Acquired 16 matter. Acquired 67 matter. U-05 Engineer lays Concrete. Mining Laser destroyed. Lgt. Ion Engine destroyed. Slammed into K-01 Serf. Ramming works as a last resort when unarmed or blocked, but can have serious negative consequences. [Achievement: First Step to Greatness] Map ----- +----------------------------------------------------+ | ???????????? ????????????????????????????????????? | | ???????????? ????????????????????????????????????? | | ???????????? #???????????????????????????????????? | | ???????????? #???????????????????????????????????? | | ############ ########????????????????????????????? | | "" ! # # "T" #????????????????????????????? | | Y" # # #????????????????????????????? | | " """"" # # """ #????????????????????????????? | | = * # # """ #????????????????????????????? | | # """ #????????????????????????????? | | # # #????????????????????????????? | | # # ##+### #+######????????????????????????????? | | #????????????????????????????? | | #????????????? #?????????????? | | #???????????? #?????????????? | | ##%######## ############ #######???????? | | # # ##?## ??????? | | ## # #??## ??????? | | # # ###?## ??????? | | = #?## #########?????????????? | | = % #?## w g#?????????????????????? | | #?## #### #?????????????????????? | | ! #?# "# #?????????????????????? | | ### # % #?????????????????????? | | ## % | # #?????????????????????? | | ### < "# @ #?????????????????????? | | # ## "# #?????????????????????? | | # ?# "# #?????????????????????? | | ##########?## "# #?????????????????????? | | #???????????## ### #?????????????????????? | | ############## ##?# #?????????????????????? | | ## # #??# #?????????????????????? | | ## """ / #??# #?????????????????????? | | # """ # #??# #?????????????????????? | | # """ !! # #??# #?????????????????????? | | < # !! # #??# #?????????????????????? | | # !! + #??# #?????????????????????? | | # # #??# +?????????????????????? | | ######+#####+#### ##?# ??????????????????????? | | ?? # ##### ### #?? ??????????????????????? | | ???% # #?? ??????????????????????? | | ?? ? + * #???????????????????????????? | | ?????# #???????????????????????????? | | ?????# #### #???????????????????????????? | | ?????# ######+####??????????????????????????? | | ?????# + #??????????????????????????? | | ?????# #### """ """ #??????????????????????????? | | ?????# #??# """ "R" #??????????????????????????? | | ???####+##### """ " " #??????????????????????????? | | ???# # #??????????????????????????? | +----------------------------------------------------+ Best States ------------- Heat Dissipation 25 Energy Generation 10 Energy Capacity 125 Matter Stores 400 Matter Capacity 400 Sight Range 16 Terrain Scan Range 16 Terrain Scan Density 10 Evasion (%) 50 Item Schematics ----------------- None Robot Schematics ------------------ None Fabricated ------------ Nothing Alien Tech Used ----------------- None Achievements -------------- First Step to Greatness Part-time Mechanic Storm Trooper Uninvited Guest Challenges ------------ None Game ------ Seed SwordDefenseMace Manual? 0 Play Time 00:37:12 Cumulative 1.2 hours Start 2021.06.25 @ 00:13:13 End 2021.06.25 @ 01:11:44 Sessions 1 Manual Loads 0 Difficulty Rogue Special Mode None Game No. 1 Rogue 1 Adventurer 0 Explorer 0 Win Type - Total 0 Types 0/0/0/0/0/0/0/0/0 Lore% 0 Gallery% 1 Achievement% 1 Wizard Run 0 Options --------- ASCII 0 Keyboard 0 Movement Mouse Keybinds 0 Fullscreen 1 Font 18/SmallcapsGlow Map View 76x50 Tactical HUD 0 Map Filters NONE Filters NONE Steam 1 RUN: 432232cc-3ab9-4c68-9bb1-c2a93417b69c